bitfinex/quotes_SOLUSD_20241029
["timestamp","ask_amount","ask_price","bid_price","bid_amount"]
[1730242105315,19.4227,180.2,180.09,34.43016832]
[1730242106687,19.4227,180.2,180.09,23.776884]
[1730242106892,19.4227,180.2,180.1,10.65328432]
[1730242108005,20.0,180.19,180.06,22.9043]
[1730242108405,20.0,180.19,180.06,33.55758432]
[1730242108613,5.5493,180.2,180.12,10.65328432]
[1730242108798,20.0,180.24,180.13,10.65328432]
[1730242108996,5.5481,180.24,180.12,10.65328432]
[1730242109705,5.5481,180.24,180.13,23.776884]
[1730242110212,19.4184,180.24,180.13,23.776884]
[1730242110413,19.4184,180.24,180.12,23.776884]
[1730242110614,5.5481,180.24,180.12,23.776884]
[1730242110992,5.5481,180.24,180.07,21.21006841]
[1730242110993,20.0,180.23,180.09,20.0]
[1730242111197,20.0,180.23,180.07,36.64412386]
[1730242111622,20.0,180.23,180.07,20.0]
[1730242111825,47.1591,180.24,180.06,39.54842386]
[1730242111826,20.0,180.21,180.06,39.54842386]
[1730242112195,19.4227,180.2,180.06,39.54842386]
[1730242112797,20.0,180.19,180.06,22.9043]
[1730242113010,20.0,180.19,180.06,39.54842386]
[1730242113319,20.0,180.19,180.06,22.9043]
[1730242113702,6.649,180.18,180.06,22.9043]
[1730242114100,5.5509,180.15,180.02,16.89510386]
[1730242114714,19.4282,180.15,180.02,16.64412386]
[1730242114928,19.4282,180.15,180.01,38.97132386]
[1730242116226,19.4282,180.15,180.02,20.0]
[1730242116723,19.4282,180.15,180.02,36.64412386]
[1730242116926,19.4282,180.15,180.04,16.64412386]
[1730242117101,19.4282,180.15,180.03,40.42100786]
[1730242117305,5.5509,180.15,180.05,16.64412386]
[1730242118119,5.5509,180.15,180.04,20.0]
[1730242118323,5.5509,180.15,180.05,23.776884]
[1730242118700,19.4282,180.15,180.04,20.0]
[1730242118929,19.4282,180.15,180.04,23.776884]
[1730242119824,15.9453,180.16,180.06,16.64412386]
[1730242120023,15.9453,180.16,180.04,23.776884]
[1730242120024,15.9453,180.16,180.07,16.64412386]
[1730242120323,21.4959,180.16,180.07,23.776884]
[1730242120530,21.4959,180.16,180.07,40.42100786]
[1730242120819,5.5503,180.17,180.08,16.64412386]
[1730242121039,5.5503,180.17,180.09,23.776884]
[1730242121813,5.5496,180.19,180.09,40.42100786]
[1730242122007,5.5496,180.19,180.1,16.64412386]
[1730242122444,15.9453,180.2,180.11,23.776884]
[1730242122645,21.4948,180.2,180.11,40.42100786]
[1730242122824,13.8697,180.25,180.13,16.64412386]
[1730242122825,11.33043495,180.24,180.13,16.64412386]
[1730242123032,19.4184,180.24,180.12,20.0]
[1730242123436,19.4184,180.24,180.11,16.64412386]
[1730242123717,5.5481,180.24,180.13,16.64412386]
[1730242123929,5.5481,180.24,180.12,20.0]
[1730242124129,5.5481,180.24,180.12,16.64412386]
[1730242124531,19.4184,180.24,180.12,23.776884]
[1730242124949,19.4184,180.24,180.12,40.42100786]
[1730242125326,5.5481,180.24,180.15,16.64412386]
[1730242125528,5.5481,180.24,180.14,23.776884]
[1730242125529,5.5481,180.24,180.14,30.035684]
[1730242126231,19.4184,180.24,180.14,30.035684]
[1730242126434,19.4184,180.24,180.11,43.776884]
[1730242127229,19.4184,180.24,180.12,16.64412386]
[1730242128851,5.5481,180.24,180.13,40.42100786]
[1730242134050,5.5481,180.24,180.13,23.776884]
[1730242135031,5.5481,180.24,180.13,16.64412386]
[1730242135262,5.5481,180.24,180.14,23.776884]
[1730242135547,5.5481,180.24,180.14,16.64412386]
[1730242135928,5.5481,180.24,180.15,23.776884]
[1730242136124,5.78217962,180.27,180.17,16.64412386]
[1730242136329,5.5475,180.26,180.17,40.42100786]
[1730242136553,5.5475,180.26,180.16,41.9977]
[1730242136749,5.5475,180.26,180.16,21.9977]
[1730242136942,35.6953,180.26,180.16,15.7389]
[1730242137249,35.6953,180.26,180.13,43.776884]
[1730242137639,20.0,180.25,180.13,23.776884]
[1730242138647,19.4184,180.24,180.13,23.776884]
[1730242139546,19.4184,180.24,180.12,6.2588]
[1730242141457,19.4184,180.24,180.12,16.91095697]
[1730242141833,19.4184,180.24,180.12,6.2588]
[1730242143063,20.0,180.23,180.08,6.2549]
[1730242143243,6.4851,180.2,180.08,6.2549]
[1730242144867,5.5496,180.19,180.1,10.65215697]
[1730242145064,5.5496,180.19,180.11,23.776884]
[1730242146461,5.549,180.21,180.12,10.65215697]
[1730242147445,5.5478,180.25,180.14,23.776884]
[1730242148147,5.5478,180.25,180.14,34.42904097]
[1730242148554,19.4164,180.26,180.14,34.42904097]
[1730242149754,19.4164,180.26,180.08,6.2549]
[1730242149755,19.4164,180.26,180.13,23.776884]
[1730242150375,5.5475,180.26,180.16,20.0]
[1730242151951,5.5475,180.26,180.16,23.776884]
[1730242152759,19.4163,180.26,180.15,6.2549]
[1730242152958,19.4163,180.26,180.14,16.4063]
[1730242155649,20.0,180.25,180.12,43.776884]
[1730242156878,5.5481,180.24,180.12,54.42904097]
[1730242159174,19.4184,180.24,180.12,43.776884]
[1730242159382,19.4184,180.24,180.11,20.0]
[1730242159590,20.0,180.23,180.1,6.2549]
[1730242160462,5.5487,180.22,180.1,6.2549]
[1730242162254,20.0,180.2,180.09,15.9358]
[1730242162460,20.0,180.2,180.07,20.0]
[1730242163676,19.4238,180.19,180.07,20.0]
[1730242163980,19.4238,180.19,180.06,6.6317]
[1730242163981,20.0,180.18,180.06,6.6317]
[1730242165284,5.5503,180.17,180.06,6.6317]
[1730242168980,16.4182,180.21,180.12,43.776884]
[1730242169286,21.9673,180.21,180.12,43.776884]
[1730242169485,21.9673,180.21,180.12,20.0]
[1730242169676,21.9673,180.21,180.11,20.0]
[1730242170198,21.9673,180.21,180.12,23.776884]
[1730242172767,5.5487,180.22,180.13,10.65215697]
[1730242173879,5.5481,180.24,180.13,10.65215697]
[1730242175076,5.5481,180.24,180.12,50.62154097]
[1730242177175,5.5481,180.24,180.13,10.65215697]
[1730242177485,5.5481,180.24,180.14,10.65215697]
[1730242177974,5.5481,180.24,180.13,20.0]
[1730242178178,5.5481,180.24,180.14,23.776884]
[1730242181180,5.5481,180.24,180.14,34.42904097]
[1730242184908,5.5481,180.24,180.13,20.0]
[1730242185117,5.5481,180.24,180.12,22.4378]
[1730242185295,5.5481,180.24,180.13,23.776884]
[1730242186306,5.5481,180.24,180.13,34.42904097]
[1730242187092,6.3214,180.27,180.18,23.776884]
[1730242187295,11.8688,180.27,180.16,20.0]
[1730242188102,11.8688,180.27,180.15,43.776884]
[1730242188506,5.5474,180.27,180.16,10.65215697]
[1730242189397,30.4394,180.29,180.15,43.776884]
[1730242189398,16.5723,180.29,180.15,54.42904097]
[1730242189699,19.4142,180.28,180.15,43.776884]
[1730242203431,19.4142,180.28,180.12,33.08995697]
[1730242203432,20.0,180.27,180.13,20.0]
[1730242203725,20.0,180.27,180.12,22.4378]
[1730242204434,26.5893,180.25,180.12,22.4378]
[1730242206118,5.5481,180.24,180.12,22.4378]
[1730242206431,19.4184,180.24,180.12,22.4378]
[1730242206625,35.6573,180.23,180.08,6.6486]
[1730242206934,20.0,180.21,180.08,6.6486]
[1730242207310,20.0,180.19,180.07,21.64305369]
[1730242207639,20.0,180.19,180.07,15.7864]
[1730242207828,26.5893,180.19,180.07,15.7864]
[1730242208141,5.55,180.18,180.07,15.7864]
[1730242210038,5.55,180.18,180.04,6.6486]
[1730242210039,35.6573,180.17,180.04,6.6486]
[1730242210334,20.0,180.15,180.03,15.7864]
[1730242211538,5.5512,180.14,180.03,15.7864]
[1730242212042,43.776884,180.13,180.0,6.6486]
[1730242212336,20.0,180.11,180.0,6.6486]
[1730242212570,20.0,180.11,179.98,15.7864]
[1730242213138,20.0,180.11,179.98,26.43855697]
[1730242213362,15.6573,180.12,180.0,10.65215697]
[1730242213558,5.5521,180.11,180.01,10.65215697]
[1730242213760,5.5521,180.11,180.0,10.65215697]
[1730242214061,5.5521,180.11,180.01,23.776884]
[1730242215341,15.6573,180.12,180.01,23.776884]
[1730242215561,21.2093,180.12,180.01,34.42904097]
[1730242215744,21.2093,180.12,180.01,23.776884]
[1730242216743,21.2093,180.12,180.01,34.42904097]
[1730242217141,21.2093,180.12,180.01,23.776884]
[1730242219645,21.2093,180.12,179.99,43.776884]
[1730242219943,21.2093,180.12,180.0,10.65215697]
[1730242220261,21.7137,180.16,180.04,10.65215697]
[1730242221267,5.5511,180.15,180.04,10.65215697]
[1730242222766,15.1244,180.2,180.07,54.42904097]
[1730242222979,15.1244,180.2,180.07,43.776884]
[1730242223891,5.5496,180.19,180.07,43.776884]
[1730242226466,19.4238,180.19,180.07,43.776884]
[1730242226668,20.0,180.18,180.05,16.4653]
[1730242226878,23.776884,180.17,180.02,6.3479]
[1730242227091,15.1244,180.15,180.02,6.3479]
[1730242227773,15.1244,180.15,180.03,10.65215697]
[1730242228280,5.5512,180.14,180.03,10.65215697]
[1730242228481,5.5512,180.14,180.03,20.0]
[1730242229571,5.5512,180.14,180.02,6.3479]
[1730242233000,19.4292,180.14,180.02,6.3479]
[1730242235276,20.0,180.13,180.01,16.4653]
[1730242235478,5.5518,180.12,180.01,16.4653]
[1730242235682,20.0,180.11,179.98,20.0]
[1730242236395,20.0,180.11,179.97,21.6466]
[1730242237492,5.5524,180.1,179.97,21.6466]
[1730242237696,5.5524,180.1,179.98,20.0]
[1730242239612,5.5524,180.1,180.0,10.65215697]
[1730242239901,25.5512,180.14,180.01,10.65215697]
[1730242240672,25.5512,180.14,180.0,30.65215697]
[1730242242502,25.5512,180.14,180.02,10.65215697]
[1730242242675,25.5512,180.14,180.01,23.776884]
[1730242242875,39.4292,180.14,180.02,20.0]
[1730242243486,39.4292,180.14,180.01,20.0]
[1730242243986,39.4292,180.14,179.99,10.65215697]
[1730242243987,39.4292,180.14,180.0,43.776884]
[1730242248778,23.776884,180.13,179.98,30.65215697]
[1730242249006,23.776884,180.11,179.98,20.0]
[1730242250218,5.5524,180.1,179.98,20.0]
[1730242251014,5.5524,180.1,179.98,30.65215697]
[1730242251314,5.5524,180.1,179.99,10.65215697]
[1730242251613,5.5524,180.1,179.98,30.65215697]
[1730242252404,5.5521,180.11,179.99,10.65215697]
[1730242253315,5.5521,180.11,180.01,30.65215697]
[1730242254315,5.5512,180.14,180.01,30.65215697]
[1730242254485,19.4292,180.14,179.98,20.0]
[1730242254691,19.4292,180.14,180.02,20.0]
[1730242255709,19.4292,180.14,180.01,20.0]
[1730242256512,19.4292,180.14,180.02,57.23133097]
[1730242256513,5.5512,180.14,180.02,57.23133097]
[1730242256728,15.1244,180.15,180.02,57.23133097]
[1730242256729,20.6753,180.15,180.05,43.776884]
[1730242257013,20.6753,180.15,180.05,54.42904097]
[1730242257186,5.55,180.18,180.05,54.42904097]
[1730242257386,5.55,180.18,180.07,20.0]
[1730242259194,5.55,180.18,180.06,20.0]
[1730242259801,20.0,180.17,180.03,20.0]
[1730242260113,43.776884,180.17,180.03,20.0]
[1730242260324,20.0,180.15,180.03,20.0]
[1730242260622,5.5512,180.14,180.02,22.6768]
[1730242262120,5.5512,180.14,180.03,20.0]
[1730242264011,5.5512,180.14,180.03,30.65215697]
[1730242264320,5.5509,180.15,180.05,30.65215697]
[1730242264725,16.444,180.16,180.06,10.65215697]
[1730242264941,21.9947,180.16,180.05,30.65215697]
[1730242265431,5.5496,180.19,180.08,20.0]
[1730242266103,5.5496,180.19,180.07,20.0]
[1730242267725,5.5496,180.19,180.05,30.65215697]
[1730242267909,5.5496,180.19,180.07,20.0]
[1730242268527,5.5496,180.19,180.06,43.776884]
[1730242269405,43.776884,180.18,180.06,20.0]
[1730242269610,43.776884,180.18,180.05,20.0]
[1730242270211,43.776884,180.18,180.05,30.65215697]
[1730242270714,5.5503,180.17,180.07,10.65215697]
[1730242271102,5.5503,180.17,180.07,20.0]
[1730242271935,5.5496,180.19,180.07,20.0]
[1730242272833,20.0,180.17,180.03,20.0]
[1730242273006,20.0,180.17,180.02,22.6768]
[1730242273007,16.444,180.15,180.02,22.6768]
[1730242273512,23.776884,180.14,180.02,22.6768]
[1730242273707,6.0904,180.13,180.02,22.6768]
[1730242274036,5.5518,180.12,180.02,33.32895697]
[1730242274227,5.5518,180.12,180.02,22.6768]
[1730242276944,5.5518,180.12,180.02,39.3387024]
[1730242277117,5.5518,180.12,180.02,22.6768]
[1730242278233,5.5517,180.13,180.03,20.0]
[1730242278538,16.444,180.15,180.02,39.3387024]
[1730242278539,21.9952,180.15,180.05,20.0]
[1730242279431,21.9952,180.15,180.03,20.0]
[1730242280016,21.9952,180.15,180.05,20.0]
[1730242281736,21.9952,180.15,180.04,16.6619024]
[1730242281737,21.9952,180.15,180.03,20.0]
[1730242281946,23.776884,180.14,179.98,21.3668]
[1730242282451,23.776884,180.12,179.98,21.3668]
[1730242282820,23.776884,180.12,179.99,16.6619024]
[1730242283017,20.0,180.14,180.01,16.6619024]
[1730242283537,20.0,180.14,180.01,20.0]
[1730242283741,5.5515,180.13,180.01,20.0]
[1730242285919,23.776884,180.12,179.99,20.0]
[1730242287433,5.5521,180.11,179.99,20.0]
[1730242287742,5.5519,180.12,180.01,16.6619024]
[1730242287916,5.5519,180.12,180.02,16.6619024]
[1730242288114,5.5519,180.12,180.03,20.0]
[1730242288547,16.444,180.15,180.03,36.6619024]
[1730242288735,5.5512,180.14,180.03,36.6619024]
[1730242289045,5.5512,180.14,180.05,20.0]
[1730242289745,5.5512,180.14,180.04,20.0]
[1730242293456,16.444,180.15,180.05,16.6619024]
[1730242293745,5.551,180.15,180.06,20.0]
[1730242294628,5.5506,180.16,180.06,20.0]
[1730242295329,5.5506,180.16,180.06,36.6619024]
[1730242297028,5.55,180.18,180.07,16.6619024]
[1730242297945,5.55,180.18,180.08,16.6619024]
[1730242298257,5.55,180.18,180.09,20.0]
[1730242298833,5.55,180.18,180.07,16.6619024]
[1730242299156,5.55,180.18,180.08,20.0]
[1730242302056,5.55,180.18,180.07,20.0]
[1730242302246,5.55,180.18,180.07,16.6619024]
[1730242302445,5.55,180.18,180.07,10.65650216]
[1730242302650,5.55,180.18,180.08,20.0]
[1730242305059,23.776884,180.17,180.05,21.4931]
[1730242305361,23.776884,180.17,180.01,33.62830216]
[1730242305558,39.783684,180.15,180.01,22.9718]
[1730242305732,39.783684,180.15,180.01,16.3372]
[1730242305933,56.553684,180.15,179.97,33.62830216]
[1730242306359,56.553684,180.15,179.98,10.65650216]
[1730242306958,19.4292,180.14,179.99,20.0]
[1730242307144,23.776884,180.13,179.99,20.0]
[1730242307968,19.4314,180.12,179.99,20.0]
[1730242308177,23.776884,180.11,179.99,20.0]
[1730242308468,23.776884,180.11,180.0,20.0]
[1730242309059,23.776884,180.11,179.98,36.66584106]
[1730242310169,5.5524,180.1,179.98,36.66584106]
[1730242310464,5.5524,180.1,180.0,20.0]
[1730242312063,5.5512,180.14,180.0,20.0]
[1730242312363,5.5512,180.14,180.02,20.0]
[1730242312859,5.5512,180.14,180.0,16.66584106]
[1730242313065,5.5512,180.14,180.01,20.0]
[1730242313645,5.5512,180.14,180.02,36.66584106]
[1730242313848,5.5512,180.14,180.01,16.66584106]
[1730242314161,5.5512,180.14,180.02,36.66584106]
[1730242314547,19.4292,180.14,180.01,20.0]
[1730242315368,23.776884,180.13,180.01,20.0]
[1730242315665,5.5518,180.12,180.01,20.0]
[1730242316146,5.5518,180.12,180.02,16.66584106]
[1730242316469,5.5518,180.12,180.02,20.0]
[1730242317565,5.5518,180.12,180.02,36.66584106]
[1730242318171,5.5512,180.14,180.02,20.0]
[1730242318886,5.5512,180.14,180.02,16.66584106]
[1730242319366,5.5512,180.14,180.02,20.0]
[1730242320491,5.5512,180.14,180.02,16.66584106]
[1730242320771,5.5512,180.14,180.01,20.0]
[1730242320960,19.4292,180.14,180.01,20.0]
[1730242321162,23.776884,180.13,179.99,20.0]
[1730242321548,23.776884,180.13,179.99,16.66584106]
[1730242321751,23.776884,180.13,180.0,16.66584106]
[1730242322056,23.776884,180.13,180.01,20.0]
[1730242322460,5.5518,180.12,180.01,20.0]
[1730242322966,5.5518,180.12,180.0,20.0]
[1730242323274,5.5518,180.12,180.0,36.66584106]
[1730242323454,5.5518,180.12,180.0,20.0]
[1730242324452,5.5518,180.12,180.0,36.66584106]
[1730242324850,5.5518,180.12,179.98,36.66584106]
[1730242325064,23.776884,180.11,179.98,36.66584106]
[1730242325464,22.1494,180.1,179.95,16.66584106]
[1730242325974,23.776884,180.09,179.95,16.66584106]
[1730242326575,5.553,180.08,179.96,16.66584106]
[1730242326953,5.553,180.08,179.98,20.0]
[1730242328453,5.553,180.08,179.98,36.66584106]
[1730242328876,5.553,180.08,179.98,20.0]
[1730242333881,5.553,180.08,179.97,22.9718]
[1730242336479,5.553,180.08,179.98,10.66891232]
[1730242336981,5.553,180.08,179.98,20.0]
[1730242337195,22.1494,180.1,179.98,20.0]
[1730242337490,27.7021,180.1,179.98,30.66891232]
[1730242337679,27.7021,180.1,179.98,20.0]
[1730242338387,21.1623,180.1,180.0,20.0]
[1730242338680,21.1623,180.1,179.98,20.0]
[1730242340188,21.1623,180.1,179.98,30.66891232]
[1730242341361,21.1623,180.1,179.98,20.0]
[1730242341771,35.0434,180.1,179.98,20.0]
[1730242342698,15.6096,180.1,180.01,10.66891232]
[1730242342988,5.55,180.18,180.05,20.0]
[1730242343184,5.55,180.18,180.07,10.66891232]
[1730242343395,5.55,180.18,180.05,20.0]
[1730242344193,5.55,180.18,180.05,30.66891232]
[1730242344678,19.425,180.18,180.05,20.0]
[1730242345588,23.776884,180.17,180.05,20.0]
[1730242345764,5.5506,180.16,180.05,30.66891232]
[1730242345964,5.5506,180.16,180.05,20.0]
[1730242346468,23.776884,180.15,180.03,6.1172]
[1730242347678,5.5512,180.14,180.03,6.1172]
[1730242347871,5.5512,180.14,180.03,16.78611232]
[1730242348989,13.8765,180.16,180.03,6.1172]
[1730242349383,21.3351,180.14,180.0,16.5112]
[1730242349582,21.3351,180.14,180.01,20.0]
[1730242349893,23.776884,180.13,180.0,16.5112]
[1730242350689,23.776884,180.13,180.0,13.298231]
[1730242351059,23.776884,180.11,179.99,20.0]
[1730242351265,23.776884,180.11,179.98,6.6145]
[1730242352271,23.776884,180.09,179.98,6.6145]
[1730242353585,19.4335,180.1,179.91,0.1]
[1730242353586,30.079584,180.07,179.92,15.6853]
[1730242353985,23.776884,180.05,179.9,6.6145]
[1730242354300,19.4422,180.02,179.9,6.6145]
[1730242355792,23.776884,180.01,179.9,6.6145]
[1730242355998,23.776884,180.01,179.89,20.0]
[1730242356179,23.776884,179.99,179.85,6.6145]
[1730242357289,5.5561,179.98,179.85,6.6145]
[1730242357476,5.5561,179.98,179.86,20.0]
[1730242357787,5.5561,179.98,179.85,6.6145]
[1730242357788,15.0324,179.97,179.85,6.6145]
[1730242358171,15.0324,179.97,179.85,23.30285622]
[1730242358581,15.0324,179.97,179.85,6.6145]
[1730242358984,15.0324,179.97,179.86,20.0]
[1730242359186,5.5567,179.96,179.86,20.0]
[1730242361292,5.5567,179.96,179.85,20.0]
[1730242361477,5.5567,179.96,179.84,15.6853]
[1730242361897,23.776884,179.95,179.81,6.6145]
[1730242363198,23.776884,179.9,179.76,6.6145]
[1730242363409,23.776884,179.9,179.76,23.30285622]
[1730242363603,23.776884,179.9,179.77,16.68835622]
[1730242364104,20.5904,179.92,179.81,16.68835622]
[1730242364284,20.5904,179.92,179.76,13.52945255]
[1730242364285,20.5904,179.92,179.8,16.68835622]
[1730242365082,20.5904,179.92,179.81,20.0]
[1730242365801,20.5904,179.92,179.8,20.0]
[1730242366304,20.5904,179.92,179.8,16.68835622]
[1730242366512,20.5904,179.92,179.81,20.0]
[1730242366709,15.0324,179.92,179.81,36.68835622]
[1730242366911,21.37391434,179.96,179.85,16.68835622]
[1730242367206,15.5976,179.96,179.85,16.68835622]
[1730242367792,15.5976,179.96,179.84,36.68835622]
[1730242368108,21.1544,179.96,179.84,36.68835622]
[1730242369090,0.96254628,179.99,179.87,36.68835622]
[1730242369292,5.5555,180.0,179.88,16.68835622]
[1730242369490,5.5555,180.0,179.87,36.68835622]
[1730242369697,5.5555,180.0,179.85,16.68835622]
[1730242370087,5.5555,180.0,179.86,20.0]
[1730242370601,23.776884,179.97,179.84,36.68835622]
[1730242370903,23.776884,179.97,179.84,20.0]
[1730242371803,5.5567,179.96,179.84,20.0]
[1730242372897,13.8904,179.98,179.84,36.68835622]
[1730242373402,13.8904,179.98,179.85,16.68835622]
[1730242373607,13.8904,179.98,179.84,20.0]
[1730242373789,13.8904,179.98,179.84,36.68835622]
[1730242373981,20.0,179.99,179.87,16.68835622]
[1730242374187,5.5555,180.0,179.87,16.68835622]
[1730242374387,5.5555,180.0,179.88,36.68835622]
[1730242374685,5.5555,180.0,179.88,20.0]
[1730242375495,23.776884,179.99,179.86,36.68835622]
[1730242375894,23.776884,179.99,179.86,20.0]
[1730242376412,23.776884,179.99,179.83,6.0574]
[1730242376584,23.776884,179.97,179.84,20.0]
[1730242376785,21.8466,179.96,179.83,6.0574]
[1730242376981,23.776884,179.95,179.83,6.0574]
[1730242377185,5.5574,179.94,179.83,6.0574]
[1730242377820,23.776884,179.93,179.82,15.6352]
[1730242377994,23.776884,179.93,179.79,6.0574]
[1730242378693,35.5976,179.92,179.79,6.0574]
[1730242378897,23.776884,179.91,179.79,6.0574]
[1730242379401,5.5584,179.91,179.8,16.68835622]
[1730242379892,5.5584,179.91,179.81,16.68835622]
[1730242381217,5.5584,179.91,179.81,20.0]
[1730242381391,5.5584,179.91,179.81,36.68835622]
[1730242381586,5.557,179.95,179.84,16.68835622]
[1730242381986,6.249,179.96,179.86,16.68835622]
[1730242382181,5.5565,179.97,179.86,16.68835622]
[1730242382607,5.5565,179.97,179.85,32.42975622]
[1730242382800,5.5565,179.97,179.87,16.68835622]
[1730242383213,5.5565,179.97,179.86,36.68835622]
[1730242384219,5.5565,179.97,179.87,16.68835622]
[1730242385714,5.5565,179.97,179.86,43.09285622]
[1730242385906,5.5565,179.97,179.86,26.4045]
[1730242387531,5.5565,179.97,179.86,43.09285622]
[1730242387804,5.5565,179.97,179.87,16.68835622]
[1730242388009,5.5565,179.97,179.88,16.68835622]
[1730242388413,15.1161,180.02,179.9,16.68835622]
[1730242388592,20.6711,180.02,179.91,16.68835622]
[1730242390418,20.6711,180.02,179.92,16.68835622]
[1730242390623,15.1161,180.02,179.95,16.68835622]
[1730242390921,20.6712,180.02,179.93,36.68835622]
[1730242391614,20.6712,180.02,179.93,20.0]
[1730242392800,20.6712,180.02,179.93,36.68835622]
[1730242393121,20.6712,180.02,179.93,20.0]
[1730242393294,20.6712,180.02,179.93,36.68835622]
[1730242393817,15.1161,180.02,179.94,16.68835622]
[1730242394205,20.671,180.02,179.94,16.68835622]
[1730242394408,20.671,180.02,179.93,36.68835622]
[1730242394791,5.5549,180.02,179.93,36.68835622]
[1730242394996,21.3681,180.06,179.94,16.68835622]
[1730242395908,21.3681,180.06,179.93,36.68835622]
[1730242396226,23.776884,180.05,179.93,20.0]
[1730242396925,23.776884,180.05,179.92,21.9986]
[1730242397226,23.776884,180.05,179.92,6.2572]
[1730242398422,5.5543,180.04,179.92,6.2572]
[1730242398618,19.4401,180.04,179.92,6.2572]
[1730242400840,19.4401,180.04,179.93,16.68835622]
[1730242401201,19.4401,180.04,179.92,22.94555622]
[1730242401410,19.4401,180.04,179.92,6.2572]
[1730242405008,23.776884,180.03,179.91,20.0]
[1730242405207,23.776884,180.03,179.88,15.4302]
[1730242405508,21.934,180.02,179.89,20.0]
[1730242406034,21.934,180.02,179.88,15.4302]
[1730242406522,23.776884,180.01,179.88,15.4302]
[1730242407226,5.5555,180.0,179.88,15.4302]
[1730242407627,23.776884,179.99,179.87,6.2572]
[1730242408108,23.776884,179.99,179.84,16.68835622]
[1730242408311,23.776884,179.97,179.83,38.37575622]
[1730242409234,5.5567,179.96,179.83,38.37575622]
[1730242409532,30.398384,179.95,179.83,21.6874]
[1730242409827,30.398384,179.95,179.83,38.37575622]
[1730242410034,30.398384,179.95,179.83,21.6874]
[1730242410728,5.5574,179.94,179.83,38.37575622]
[1730242411931,5.5574,179.94,179.85,16.68835622]
[1730242412136,5.5574,179.94,179.84,36.68835622]
[1730242412941,15.8144,179.98,179.84,36.68835622]
[1730242413224,5.5564,179.97,179.85,16.68835622]
[1730242413419,5.5564,179.97,179.86,20.0]
[1730242413626,5.5564,179.97,179.86,36.68835622]
[1730242414726,21.3706,179.98,179.89,16.68835622]
[1730242415044,21.3706,179.98,179.88,16.68835622]
[1730242415733,15.8144,179.98,179.89,16.68835622]
[1730242415945,21.3706,179.98,179.86,20.0]
[1730242416119,21.3706,179.98,179.86,36.68835622]
[1730242417437,21.3706,179.98,179.87,16.68835622]
[1730242417637,21.3706,179.98,179.88,20.0]
[1730242418110,21.3706,179.98,179.87,20.0]
[1730242419138,21.3706,179.98,179.88,16.68835622]
[1730242420045,21.3706,179.98,179.87,20.0]
[1730242420419,21.3706,179.98,179.85,16.68835622]
[1730242420743,21.3706,179.98,179.86,20.0]
[1730242423331,21.3706,179.98,179.86,16.68835622]
[1730242426946,21.3706,179.98,179.85,40.46524022]
[1730242427125,21.3706,179.98,179.86,20.0]
[1730242427842,35.261,179.98,179.86,20.0]
[1730242428036,35.261,179.98,179.84,36.68835622]
[1730242428228,35.261,179.98,179.84,20.0]
[1730242428551,35.261,179.98,179.84,30.68479279]
[1730242428740,35.261,179.98,179.84,20.0]
[1730242429051,5.5567,179.96,179.84,20.0]
[1730242429428,19.4486,179.96,179.84,20.0]
[1730242430071,23.776884,179.94,179.78,7.69301529]
[1730242430347,23.776884,179.94,179.8,10.68479279]
[1730242430850,23.776884,179.94,179.81,10.68479279]
[1730242431045,5.5577,179.93,179.81,10.68479279]
[1730242431237,5.5577,179.93,179.8,10.68479279]
[1730242431647,5.5577,179.93,179.81,20.0]